[Event "VII Open Internacional Quart de Poblet"]
[Site "Quart de Poblet, Spain"]
[Date "2019.08.07"]
[Round "4.2"]
[White "Nieves Cabanes, Jose Manuel"]
[Black "Gavarrete, Nahun"]
[Result "1/2-1/2"]
[TimeControl "90m +30s por jugada"]
[WhiteFideId "22245715"]
[BlackFideId "8400709"]
[WhiteElo "2311"]
[BlackElo "2349"]

1. Nf3 {[%clk 01:30:57]} Nf6 {[%clk 01:22:55]} {[%emt 00:08:05]} 2. c4 {[%clk
01:31:19]} {[%emt 00:00:08]} g6 {[%clk 01:22:45]} {[%emt 00:00:38]} 3. b3
{[%clk 01:31:43]} {[%emt 00:00:17]} Bg7 {[%clk 01:23:05]} 4. Bb2 {[%clk
01:32:10]} {[%emt 00:00:04]} c5 {[%clk 01:22:07]} {[%emt 00:01:25]} 5. g3
{[%clk 01:31:42]} {[%emt 00:01:17]} O-O {[%clk 01:21:23]} {[%emt 00:01:01]} 6.
Bg2 {[%clk 01:32:08]} {[%emt 00:00:03]} Nc6 {[%clk 01:21:07]} {[%emt 00:00:42]}
7. O-O {[%clk 01:32:21]} {[%emt 00:00:24]} d6 {[%clk 01:16:37]} {[%emt
00:04:49]} 8. d4 {[%clk 01:30:37]} {[%emt 00:02:19]} cxd4 {[%clk 01:16:58]}
{[%emt 00:00:10]} 9. Nxd4 {[%clk 01:31:00]} {[%emt 00:00:10]} Bd7 {[%clk
01:17:21]} {[%emt 00:00:04]} 10. Nc2 {[%clk 01:29:45]} {[%emt 00:01:41]} a6
{[%clk 01:17:13]} {[%emt 00:00:40]} 11. Nc3 {[%clk 01:29:42]} {[%emt 00:00:31]}
Rb8 {[%clk 01:17:34]} {[%emt 00:00:18]} 12. Nd5 {[%clk 01:17:23]} {[%emt
00:12:41]} Nxd5 {[%clk 01:07:22]} {[%emt 00:10:41]} 13. Bxg7 {[%clk 01:17:46]}
{[%emt 00:00:32]} Kxg7 {[%clk 01:07:49]} 14. cxd5 {[%clk 01:17:27]} {[%emt
00:00:27]} Ne5 {[%clk 01:08:17]} {[%emt 00:00:10]} 15. Qd4 {[%clk 01:11:28]}
{[%emt 00:06:29]} f6 {[%clk 01:08:39]} {[%emt 00:00:08]} 16. f4 {[%clk
01:10:10]} {[%emt 00:01:42]} Nf7 {[%clk 01:08:56]} {[%emt 00:00:41]} 17. e4
{[%clk 01:06:32]} {[%emt 00:04:03]} Rc8 {[%clk 01:08:17]} {[%emt 00:00:47]} 18.
Ne3 {[%clk 01:04:13]} {[%emt 00:02:49]} Qa5 {[%clk 01:06:54]} {[%emt 00:02:27]}
19. Nc4 {[%clk 01:02:36]} {[%emt 00:01:31]} Qb4 {[%clk 01:06:28]} {[%emt
00:00:55]} 20. Qe3 {[%clk 00:51:22]} {[%emt 00:11:51]} Bb5 {[%clk 00:57:43]}
{[%emt 00:09:51]} 21. a3 {[%clk 00:49:23]} {[%emt 00:01:53]} Qc5 {[%clk
00:58:00]} {[%emt 00:00:05]} 22. Rfc1 {[%clk 00:48:49]} {[%emt 00:01:04]} Bxc4
{[%clk 00:57:50]} {[%emt 00:00:43]} 23. Qxc5 {[%clk 00:49:14]} {[%emt
00:00:20]} Rxc5 {[%clk 00:58:14]} {[%emt 00:00:06]} 24. bxc4 {[%clk 00:46:20]}
{[%emt 00:03:15]} Rfc8 {[%clk 00:55:55]} {[%emt 00:02:40]} 25. Rcb1 {[%clk
00:46:09]} {[%emt 00:00:42]} Rxc4 {[%clk 00:50:54]} {[%emt 00:05:29]} 26. Rxb7
{[%clk 00:45:54]} {[%emt 00:00:45]} Kf8 {[%clk 00:50:33]} {[%emt 00:00:55]} 27.
Bf1 {[%clk 00:41:36]} {[%emt 00:04:45]} Rd4 {[%clk 00:33:13]} {[%emt 00:17:50]}
28. Bxa6 {[%clk 00:35:22]} {[%emt 00:06:44]} Rc3 {[%clk 00:22:38]} {[%emt
00:11:06]} 29. Rb4 {[%clk 00:33:58]} {[%emt 00:01:54]} Rd2 {[%clk 00:20:45]}
{[%emt 00:02:26]} 30. a4 {[%clk 00:31:48]} {[%emt 00:02:37]} Nh6 {[%clk
00:20:50]} {[%emt 00:00:25]} 31. Rc4 {[%clk 00:23:08]} {[%emt 00:09:11]} Rb3
{[%clk 00:20:41]} {[%emt 00:00:38]} 32. Bc8 {[%clk 00:22:30]} {[%emt 00:01:10]}
f5 {[%clk 00:16:22]} {[%emt 00:05:04]} 33. Rac1 {[%clk 00:17:14]} {[%emt
00:05:36]} Rbb2 {[%clk 00:16:41]} {[%emt 00:00:08]} 34. h3 {[%clk 00:15:50]}
{[%emt 00:01:49]} Rg2+ {[%clk 00:16:40]} {[%emt 00:00:37]} 35. Kf1 {[%clk
00:14:37]} {[%emt 00:01:36]} Rh2 {[%clk 00:14:24]} {[%emt 00:02:46]} 36. Kg1
{[%clk 00:14:56]} {[%emt 00:00:36]} Rbg2+ {[%clk 00:14:12]} {[%emt 00:00:17]}
37. Kf1 {[%clk 00:15:18]} {[%emt 00:00:13]} Ra2 {[%clk 00:14:07]} {[%emt
00:00:30]} 38. Kg1 {[%clk 00:15:30]} {[%emt 00:00:18]} Rxh3 {[%clk 00:13:11]}
{[%emt 00:01:26]} 39. R1c2 {[%clk 00:14:35]} {[%emt 00:01:32]} Rxc2 {[%clk
00:13:25]} {[%emt 00:00:59]} 40. Rxc2 {[%clk 00:15:00]} Rxg3+ {[%clk 00:13:50]}
41. Kf2 {[%clk 00:13:50]} {[%emt 00:01:01]} Ra3 {[%clk 00:14:11]} {[%emt
00:00:22]} 42. exf5 {[%clk 00:13:31]} {[%emt 00:01:05]} Nxf5 {[%clk 00:12:25]}
{[%emt 00:01:55]} 43. Bd7 {[%clk 00:11:06]} {[%emt 00:02:49]} Ne3 {[%clk
00:08:06]} {[%emt 00:05:08]} 44. Rc8+ {[%clk 00:10:40]} {[%emt 00:00:39]} Kg7
{[%clk 00:08:22]} {[%emt 00:00:09]} 45. Bc6 {[%clk 00:10:41]} {[%emt 00:00:30]}
Nc2 {[%clk 00:06:43]} {[%emt 00:02:08]} 46. Re8 {[%clk 00:06:37]} {[%emt
00:04:38]} Kf7 {[%clk 00:06:29]} {[%emt 00:00:43]} 47. Rh8 {[%clk 00:07:01]}
{[%emt 00:00:06]} Nb4 {[%clk 00:04:10]} {[%emt 00:02:51]} 48. Rxh7+ {[%emt
00:02:38]} Kf6 {[%emt 00:00:04]} 49. Be8 Nd3+ {[%emt 00:00:05]} 1/2-1/2

[Event "VII Open Internacional Quart de Poblet"]
[Site "Quart de Poblet, Spain"]
[Date "2019.08.07"]
[Round "4.3"]
[White "Castella Garcia, Fausto"]
[Black "Kovacevic, Slobodan"]
[Result "1-0"]
[TimeControl "90m +30s por jugada"]
[WhiteFideId "3501922"]
[BlackFideId "902152"]
[WhiteElo "2315"]
[BlackElo "2252"]

1. e4 {[%clk 01:14:58]} {[%emt 00:00:14]} c5 {[%clk 01:30:45]} {[%emt
00:00:17]} 2. Nf3 {[%clk 01:15:17]} {[%emt 00:00:04]} e6 {[%clk 01:30:39]}
{[%emt 00:00:44]} 3. Nc3 {[%clk 01:15:40]} {[%emt 00:00:10]} a6 {[%clk
01:31:02]} 4. d4 {[%clk 01:16:06]} {[%emt 00:00:08]} cxd4 {[%clk 01:31:25]}
{[%emt 00:00:03]} 5. Nxd4 {[%clk 01:16:29]} {[%emt 00:00:07]} Qc7 {[%clk
01:30:58]} {[%emt 00:01:21]} 6. Qf3 {[%clk 01:16:31]} {[%emt 00:00:05]} Nf6
{[%clk 01:29:38]} {[%emt 00:01:46]} 7. Bg5 {[%clk 01:15:18]} {[%emt 00:01:52]}
Be7 {[%clk 01:29:10]} {[%emt 00:00:50]} 8. O-O-O {[%clk 01:12:38]} {[%emt
00:03:10]} d6 {[%clk 01:22:16]} {[%emt 00:07:25]} 9. Qg3 {[%clk 01:10:30]}
{[%emt 00:02:50]} Nbd7 {[%clk 01:21:25]} {[%emt 00:01:08]} 10. h4 {[%clk
01:07:32]} {[%emt 00:03:28]} Nh5 {[%clk 01:14:29]} {[%emt 00:07:26]} 11. Qh2
{[%clk 00:53:38]} {[%emt 00:14:24]} Nhf6 {[%clk 01:12:54]} {[%emt 00:02:05]} 12.
f3 {[%clk 00:47:35]} {[%emt 00:06:32]} h6 {[%clk 01:10:09]} {[%emt 00:03:15]}
13. Be3 {[%clk 00:47:10]} {[%emt 00:00:58]} Ne5 {[%clk 01:10:32]} {[%emt
00:00:07]} 14. g4 {[%clk 00:42:15]} {[%emt 00:05:22]} Bd7 {[%clk 01:09:06]}
{[%emt 00:01:56]} 15. Qg2 {[%clk 00:37:38]} {[%emt 00:05:07]} O-O-O {[%clk
01:01:34]} {[%emt 00:08:03]} 16. g5 {[%clk 00:31:27]} {[%emt 00:07:13]} hxg5
{[%clk 01:00:30]} {[%emt 00:01:04]} 17. hxg5 {[%clk 00:31:49]} {[%emt
00:00:09]} Rxh1 {[%clk 00:55:33]} {[%emt 00:05:23]} 18. Qxh1 {[%clk 00:31:03]}
{[%emt 00:01:21]} Ne8 {[%clk 00:55:48]} {[%emt 00:00:15]} 19. Qg1 {[%clk
00:28:02]} {[%emt 00:03:24]} Nc4 {[%clk 00:54:55]} {[%emt 00:01:30]} 20. Bxc4
{[%clk 00:28:17]} {[%emt 00:00:08]} Qxc4 {[%clk 00:55:24]} {[%emt 00:00:35]} 21.
Nb3 {[%clk 00:28:30]} {[%emt 00:00:04]} Kb8 {[%clk 00:54:00]} {[%emt 00:01:34]}
22. Bb6 {[%clk 00:24:00]} {[%emt 00:04:59]} g6 {[%clk 00:53:35]} {[%emt
00:00:58]} 23. Bxd8 {[%clk 00:22:50]} {[%emt 00:01:41]} Bxd8 {[%clk 00:54:04]}
{[%emt 00:00:04]} 24. f4 {[%emt 00:01:40]} Qc6 {[%emt 00:00:43]} 25. Qd4 {[%clk
00:22:46]} {[%emt 00:00:18]} Bb6 {[%emt 00:00:44]} 26. Qd3 {[%emt 00:02:16]}
Qc7 {[%emt 00:00:04]} 27. Kb1 {[%clk 00:22:15]} {[%emt 00:00:58]} Bc6 {[%emt
00:02:04]} 28. f5 {[%clk 00:21:29]} {[%emt 00:00:06]} Qe7 {[%clk 00:49:25]}
{[%emt 00:02:01]} 29. fxg6 {[%clk 00:19:14]} {[%emt 00:02:47]} fxg6 {[%clk
00:49:53]} {[%emt 00:00:04]} 30. e5 {[%clk 00:18:23]} {[%emt 00:01:33]} dxe5
{[%clk 00:50:16]} 31. Qxg6 {[%clk 00:18:40]} {[%emt 00:00:05]} Be3 {[%clk
00:50:37]} {[%emt 00:00:12]} 32. Na5 {[%clk 00:14:17]} {[%emt 00:04:49]} Bg2
{[%clk 00:50:50]} {[%emt 00:00:19]} 33. Qd3 {[%clk 00:13:06]} {[%emt 00:01:38]}
Bxg5 {[%clk 00:50:59]} {[%emt 00:00:33]} 34. Qg3 {[%clk 00:13:05]} {[%emt
00:00:21]} Bd5 {[%clk 00:50:46]} {[%emt 00:00:43]} 35. Qxe5+ {[%clk 00:13:04]}
{[%emt 00:01:06]} Nc7 {[%clk 00:51:03]} 36. Rg1 {[%clk 00:07:13]} {[%emt
00:05:57]} Qc5 {[%clk 00:51:33]} {[%emt 00:00:40]} 37. Qxg5 {[%clk 00:04:15]}
{[%emt 00:02:52]} Qxa5 {[%clk 00:51:59]} {[%emt 00:00:07]} 38. Qd8+ {[%clk
00:04:30]} {[%emt 00:00:14]} Ka7 {[%clk 00:51:58]} {[%emt 00:00:27]} 39. Rg7
{[%clk 00:04:42]} {[%emt 00:00:29]} Bxa2+ {[%clk 00:51:47]} {[%emt 00:00:29]}
40. Nxa2 {[%clk 00:05:01]} {[%emt 00:00:14]} Qe1+ {[%clk 00:52:12]} {[%emt
00:00:06]} 41. Nc1 {[%clk 00:05:15]} {[%emt 00:00:12]} Nd5 {[%clk 00:52:05]}
{[%emt 00:00:58]} 42. Qc8 {[%clk 00:04:02]} {[%emt 00:01:25]} Qb4 {[%clk
00:52:31]} {[%emt 00:00:04]} 43. Nd3 {[%clk 00:04:22]} {[%emt 00:00:10]} Qb6
{[%clk 00:52:45]} {[%emt 00:00:14]} 44. Nc5 {[%clk 00:04:15]} {[%emt 00:00:38]}
Nc3+ {[%clk 00:52:51]} {[%emt 00:00:37]} 45. Kc1 {[%clk 00:04:33]} {[%emt
00:00:07]} Ne2+ {[%clk 00:53:20]} 46. Kd2 {[%clk 00:03:59]} {[%emt 00:00:56]}
Qd6+ {[%clk 00:53:49]} 47. Nd3 {[%clk 00:03:59]} {[%emt 00:00:33]} Qd5 {[%clk
00:54:14]} {[%emt 00:00:06]} 48. Qc5+ {[%clk 00:04:07]} {[%emt 00:00:38]} 1-0

[Event "VII Open Internacional Quart de Poblet"]
[Site "Quart de Poblet, Spain"]
[Date "2019.08.07"]
[Round "4.4"]
[White "Navarro Diaz, Carles"]
[Black "Galvan, Jesus"]
[Result "1-0"]
[TimeControl "90m +30s por jugada"]
[BlackFideId "3800458"]
[WhiteElo "2067"]
[BlackElo "2220"]

1. e4 {[%clk 01:30:54]} Nc6 {[%clk 01:28:41]} {[%emt 00:02:42]} 2. Nf3 {[%clk
01:30:54]} {[%emt 00:00:05]} d6 {[%clk 01:29:02]} {[%emt 00:00:11]} 3. d4
{[%clk 01:30:12]} {[%emt 00:01:13]} Nf6 {[%clk 01:29:17]} {[%emt 00:00:12]} 4.
Nc3 {[%clk 01:29:14]} {[%emt 00:01:31]} Bg4 {[%clk 01:29:26]} {[%emt 00:00:18]}
5. Be3 {[%clk 01:27:55]} {[%emt 00:02:14]} e5 {[%clk 01:28:52]} {[%emt
00:00:42]} 6. Bb5 {[%clk 01:22:51]} {[%emt 00:05:31]} Nd7 {[%clk 01:29:12]}
{[%emt 00:00:19]} 7. Bxc6 {[%clk 01:20:41]} {[%emt 00:02:32]} bxc6 {[%clk
01:29:38]} {[%emt 00:00:36]} 8. h3 {[%clk 01:20:46]} exd4 {[%clk 01:25:26]}
{[%emt 00:04:35]} 9. Bxd4 {[%clk 01:15:36]} {[%emt 00:05:40]} Bxf3 {[%clk
01:17:45]} {[%emt 00:08:11]} 10. Qxf3 {[%clk 01:15:17]} {[%emt 00:00:49]} c5
{[%clk 01:18:11]} {[%emt 00:00:35]} 11. Be3 {[%clk 01:15:27]} {[%emt 00:00:06]}
g6 {[%clk 01:18:14]} {[%emt 00:00:10]} 12. h4 {[%clk 01:10:30]} {[%emt
00:05:44]} h5 {[%clk 01:18:12]} {[%emt 00:00:16]} 13. Bg5 {[%clk 01:01:15]}
{[%emt 00:09:47]} Be7 {[%clk 01:07:58]} {[%emt 00:10:42]} 14. Nd5 {[%clk
00:51:54]} {[%emt 00:09:58]} Bxg5 {[%clk 01:05:15]} {[%emt 00:03:05]} 15. hxg5
{[%clk 00:52:10]} {[%emt 00:00:13]} c6 {[%clk 00:59:51]} {[%emt 00:05:54]} 16.
Nf6+ {[%clk 00:50:39]} {[%emt 00:02:02]} Nxf6 {[%clk 00:59:23]} {[%emt
00:01:05]} 17. gxf6 {[%clk 00:49:58]} {[%emt 00:01:06]} Qa5+ {[%clk 00:54:37]}
{[%emt 00:05:46]} 18. c3 {[%clk 00:49:13]} {[%emt 00:01:05]} O-O-O {[%clk
00:52:30]} {[%emt 00:02:38]} 19. O-O {[%clk 00:48:36]} {[%emt 00:00:46]} Rhe8
{[%clk 00:52:28]} {[%emt 00:00:30]} 20. b4 {[%clk 00:31:45]} {[%emt 00:17:20]}
cxb4 {[%clk 00:51:12]} {[%emt 00:01:53]} 21. cxb4 {[%clk 00:32:07]} {[%emt
00:00:05]} Qe5 {[%clk 00:51:33]} {[%emt 00:00:08]} 22. Qa3 {[%clk 00:31:21]}
{[%emt 00:01:13]} Kb7 {[%clk 00:51:40]} {[%emt 00:00:31]} 23. b5 {[%clk
00:29:33]} {[%emt 00:02:10]} cxb5 {[%clk 00:48:24]} {[%emt 00:03:48]} 24. Qb3
{[%clk 00:27:24]} {[%emt 00:02:36]} Kb8 {[%clk 00:47:29]} {[%emt 00:01:25]} 25.
Rfe1 {[%clk 00:22:34]} {[%emt 00:05:21]} Rd7 {[%clk 00:46:35]} {[%emt
00:01:24]} 26. Rad1 {[%clk 00:22:46]} {[%emt 00:00:47]} Rb7 {[%clk 00:44:07]}
{[%emt 00:02:31]} 27. Rd5 {[%clk 00:22:29]} {[%emt 00:00:44]} Qe6 {[%clk
00:42:27]} {[%emt 00:02:15]} 28. Qb4 {[%clk 00:22:26]} {[%emt 00:00:28]} Ka8
{[%emt 00:06:39]} 29. Rxb5 {[%clk 00:20:02]} {[%emt 00:02:46]} Reb8 {[%clk
00:36:49]} {[%emt 00:00:09]} 30. Rxb7 {[%clk 00:19:34]} {[%emt 00:00:56]} Rxb7
{[%clk 00:37:18]} {[%emt 00:00:20]} 31. Qc3 {[%clk 00:19:38]} {[%emt 00:00:10]}
Kb8 {[%clk 00:27:08]} {[%emt 00:10:53]} 32. Rc1 {[%clk 00:16:23]} {[%emt
00:03:32]} a6 {[%clk 00:23:44]} {[%emt 00:04:01]} 33. Qa5 {[%clk 00:07:20]}
{[%emt 00:09:28]} Qxf6 {[%clk 00:14:55]} {[%emt 00:09:18]} 34. Qxa6 {[%clk
00:07:37]} {[%emt 00:00:13]} Qf4 {[%clk 00:08:26]} {[%emt 00:07:07]} 35. Rd1
{[%clk 00:05:49]} {[%emt 00:02:10]} Rb2 {[%clk 00:06:24]} {[%emt 00:02:31]} 36.
Qxd6+ {[%clk 00:06:07]} {[%emt 00:00:10]} Qxd6 {[%clk 00:06:51]} {[%emt
00:00:12]} 37. Rxd6 {[%clk 00:06:29]} {[%emt 00:00:08]} Kc7 {[%clk 00:07:09]}
{[%emt 00:00:04]} 38. Rf6 {[%clk 00:05:51]} {[%emt 00:01:08]} Kd7 {[%clk
00:03:13]} {[%emt 00:04:26]} 39. Rxf7+ {[%clk 00:05:47]} {[%emt 00:00:33]} Ke6
{[%clk 00:03:42]} 40. Ra7 {[%clk 00:06:01]} {[%emt 00:00:37]} Ke5 {[%clk
00:04:09]} 41. f3 {[%clk 00:06:02]} {[%emt 00:00:12]} Kf4 {[%clk 00:03:52]}
{[%emt 00:00:49]} 42. Kh2 {[%clk 00:06:19]} {[%emt 00:00:12]} g5 {[%clk
00:04:04]} {[%emt 00:00:22]} 43. Rf7+ {[%clk 00:04:11]} {[%emt 00:02:34]} Ke3
{[%clk 00:04:27]} {[%emt 00:00:40]} 44. a4 {[%clk 00:02:34]} {[%emt 00:01:34]}
Kf2 {[%clk 00:03:45]} {[%emt 00:01:11]} 45. Rf5 {[%clk 00:02:15]} {[%emt
00:00:52]} Rb1 {[%clk 00:02:59]} {[%emt 00:01:22]} 46. Rxg5 {[%clk 00:02:11]}
{[%emt 00:00:32]} h4 {[%clk 00:02:58]} {[%emt 00:00:28]} 47. a5 {[%clk
00:01:55]} {[%emt 00:00:43]} Rg1 {[%clk 00:02:55]} {[%emt 00:00:33]} 48. a6
{[%clk 00:01:53]} {[%emt 00:00:32]} h3 {[%clk 00:03:19]} {[%emt 00:00:21]} 49.
Kxh3 {[%clk 00:02:03]} {[%emt 00:00:13]} Rh1+ {[%clk 00:03:35]} {[%emt
00:00:10]} 50. Kg4 {[%clk 00:02:27]} {[%emt 00:00:07]} Kxg2 {[%clk 00:04:04]}
51. Ra5 {[%clk 00:02:33]} {[%emt 00:00:25]} 1-0

[Event "VII Open Internacional Quart de Poblet"]
[Site "Quart de Poblet, Spain"]
[Date "2019.08.07"]
[Round "4.5"]
[White "Hassomal Daswani, Birjkumar"]
[Black "Carbonell Sancho, Marc"]
[Result "1/2-1/2"]
[TimeControl "90m +30s por jugada"]
[WhiteFideId "2224356"]
[BlackFideId "32029969"]
[WhiteElo "1969"]
[BlackElo "2187"]

1. e4 {[%clk 01:30:58]} {[%emt 00:00:14]} c5 {[%clk 01:30:52]} 2. Nf3 {[%clk
01:31:04]} {[%emt 00:00:58]} Nc6 {[%clk 01:31:17]} 3. d4 {[%clk 01:31:08]}
{[%emt 00:00:03]} cxd4 {[%clk 01:31:42]} {[%emt 00:00:04]} 4. Nxd4 {[%clk
01:31:29]} {[%emt 00:00:04]} g6 {[%clk 01:32:08]} {[%emt 00:00:03]} 5. c4
{[%clk 01:31:04]} {[%emt 00:00:55]} Bg7 {[%clk 01:32:32]} {[%emt 00:00:05]} 6.
Be3 {[%clk 01:30:50]} {[%emt 00:00:45]} Nf6 {[%clk 01:32:57]} {[%emt 00:00:31]}
7. Nc3 {[%clk 01:30:56]} O-O {[%clk 01:33:19]} {[%emt 00:00:13]} 8. Be2 {[%clk
01:30:18]} {[%emt 00:00:58]} d6 {[%clk 01:33:43]} {[%emt 00:00:36]} 9. Nc2
{[%clk 01:21:16]} {[%emt 00:09:24]} Be6 {[%clk 01:31:20]} {[%emt 00:02:40]} 10.
O-O {[%clk 01:20:13]} {[%emt 00:01:23]} Rc8 {[%clk 01:30:01]} {[%emt 00:01:54]}
11. Qd2 {[%clk 01:19:12]} {[%emt 00:01:28]} Na5 {[%clk 01:24:18]} {[%emt
00:06:11]} 12. b3 {[%clk 01:17:57]} {[%emt 00:01:45]} a6 {[%clk 01:24:45]}
{[%emt 00:00:12]} 13. Rac1 {[%clk 01:17:02]} {[%emt 00:01:19]} Bd7 {[%clk
01:10:30]} {[%emt 00:14:44]} 14. f3 {[%clk 01:15:37]} {[%emt 00:01:59]} Be6
{[%clk 00:51:25]} {[%emt 00:19:32]} 15. Na4 {[%clk 01:07:37]} {[%emt 00:08:28]}
Nd7 {[%clk 00:50:25]} {[%emt 00:01:30]} 16. f4 {[%clk 01:06:50]} {[%emt
00:01:17]} Nc5 {[%clk 00:43:03]} {[%emt 00:07:51]} 17. Nxc5 {[%clk 01:06:15]}
{[%emt 00:01:08]} dxc5 {[%clk 00:43:32]} {[%emt 00:00:04]} 18. f5 {[%clk
01:04:17]} {[%emt 00:02:22]} Bd7 {[%clk 00:43:16]} {[%emt 00:00:48]} 19. Rcd1
{[%clk 01:03:00]} {[%emt 00:01:45]} Bc6 {[%clk 00:43:36]} {[%emt 00:00:17]} 20.
Qe1 {[%clk 01:02:58]} {[%emt 00:00:26]} Qc7 {[%clk 00:41:39]} {[%emt 00:02:26]}
21. Bf4 {[%clk 01:00:03]} {[%emt 00:03:33]} Be5 {[%clk 00:42:04]} {[%emt
00:00:03]} 22. Bxe5 {[%clk 00:58:16]} {[%emt 00:02:11]} Qxe5 {[%clk 00:42:32]}
{[%emt 00:00:09]} 23. Bf3 {[%clk 00:55:35]} {[%emt 00:03:04]} b6 {[%clk
00:41:57]} {[%emt 00:01:05]} 24. Ne3 {[%clk 00:54:51]} {[%emt 00:01:13]} Nb7
{[%clk 00:42:03]} {[%emt 00:00:25]} 25. Ng4 {[%clk 00:54:43]} {[%emt 00:00:38]}
Qg7 {[%clk 00:42:25]} {[%emt 00:00:34]} 26. Qh4 {[%clk 00:50:52]} {[%emt
00:03:59]} g5 {[%clk 00:28:57]} {[%emt 00:14:00]} 27. Qg3 {[%clk 00:46:07]}
{[%emt 00:05:10]} h5 {[%clk 00:25:17]} {[%emt 00:04:10]} 28. f6 {[%clk
00:45:48]} {[%emt 00:00:48]} exf6 {[%clk 00:24:45]} {[%emt 00:01:03]} 29. Ne3
{[%clk 00:46:07]} {[%emt 00:00:25]} Qg6 {[%clk 00:22:12]} {[%emt 00:03:09]} 30.
Nf5 {[%clk 00:45:39]} {[%emt 00:00:35]} Rfe8 {[%clk 00:22:38]} {[%emt
00:00:16]} 31. h3 {[%clk 00:42:54]} {[%emt 00:03:03]} Re5 {[%clk 00:21:16]}
{[%emt 00:01:56]} 32. Qxe5 {[%clk 00:40:09]} {[%emt 00:03:11]} fxe5 {[%clk
00:21:43]} {[%emt 00:00:23]} 33. Ne7+ {[%clk 00:40:24]} {[%emt 00:00:04]} Kg7
{[%clk 00:22:12]} 34. Nxg6 {[%clk 00:40:33]} {[%emt 00:00:12]} Kxg6 {[%clk
00:22:37]} {[%emt 00:00:12]} 35. Rd2 {[%clk 00:39:46]} {[%emt 00:01:29]} Re8
{[%clk 00:21:19]} {[%emt 00:01:29]} 36. Rfd1 {[%clk 00:36:20]} {[%emt
00:03:56]} Re6 {[%clk 00:21:38]} {[%emt 00:00:36]} 37. Kf2 {[%clk 00:36:06]}
{[%emt 00:00:30]} Rf6 {[%clk 00:20:30]} {[%emt 00:01:27]} 38. Ke3 {[%clk
00:36:12]} {[%emt 00:00:27]} Re6 {[%clk 00:18:53]} {[%emt 00:02:03]} 39. Rd3
{[%clk 00:36:15]} {[%emt 00:00:27]} Kh6 {[%clk 00:17:44]} {[%emt 00:01:42]} 40.
R1d2 {[%clk 00:36:25]} {[%emt 00:00:16]} Kg6 {[%clk 00:18:05]} {[%emt
00:00:13]} 41. a3 {[%clk 00:36:43]} {[%emt 00:00:09]} a5 {[%clk 00:15:50]}
{[%emt 00:03:13]} 42. b4 {[%clk 00:35:47]} {[%emt 00:01:00]} f6 {[%clk
00:11:28]} {[%emt 00:04:59]} 43. b5 {[%clk 00:35:16]} {[%emt 00:00:52]} Be8
{[%clk 00:11:47]} {[%emt 00:00:11]} 44. Rd5 {[%clk 00:33:57]} {[%emt 00:01:49]}
Re7 {[%clk 00:11:16]} {[%emt 00:01:01]} 45. Be2 {[%clk 00:33:46]} {[%emt
00:00:42]} Kg7 {[%clk 00:10:52]} {[%emt 00:00:54]} 46. a4 {[%clk 00:33:20]}
{[%emt 00:00:56]} 1/2-1/2